bitfinex-derivatives/quotes_SOLF0:USTF0_20250923
["timestamp","ask_amount","ask_price","bid_price","bid_amount"]
[1758609384097,6.52522436,220.17,220.12,3.71231667]
[1758609384296,7.23,220.23,220.13,10.82231667]
[1758609384498,8.42112736,220.22,220.14,3.71231667]
[1758609384697,67.5901,220.3,220.15,3.71231667]
[1758609384698,8.42112736,220.21,220.15,3.71231667]
[1758609384895,8.42112736,220.2,220.16,7.11]
[1758609385098,7.23,220.28,220.16,3.71231667]
[1758609385305,8.41931883,220.27,220.18,3.71231667]
[1758609385597,8.41931883,220.26,220.16,3.71231667]
[1758609385800,9.89576987,220.19,220.12,3.71231667]
[1758609385996,8.41931883,220.18,220.12,3.71231667]
[1758609386208,18.3150887,220.17,220.12,3.71231667]
[1758609386507,8.41931883,220.16,220.13,3.70963776]
[1758609386802,8.41931883,220.16,220.12,3.71231667]
[1758609386803,8.41931883,220.15,220.14,3.70963776]
[1758609387399,13.90200156,220.15,220.14,3.70963776]
[1758609387797,4.00623169,220.15,220.14,3.70963776]
[1758609388498,9.7689946,220.29,220.14,3.70963776]
[1758609388499,63.4697,220.43,220.22,63.5262]
[1758609388702,9.89576987,220.31,220.23,7.42195443]
[1758609388905,0.78999342,220.45,220.05,10.08042481]
[1758609388906,63.5431,220.17,220.05,10.08042481]
[1758609389104,63.5431,220.17,219.95,7.11]
[1758609389105,7.23,220.12,219.95,7.11]
[1758609389298,7.23,220.12,219.97,4.0884]
[1758609389299,3.96926791,220.11,219.97,4.0884]
[1758609389502,7.23,220.12,219.98,11.20849136]
[1758609389699,2.31003131,220.08,219.99,8.45352631]
[1758609389902,7.23,220.12,220.01,70.698]
[1758609390098,7.23,220.19,220.02,8.45352631]
[1758609390294,7.23,220.17,220.03,8.45352631]
[1758609390495,7.23,220.17,220.01,7.11]
[1758609390496,7.23,220.17,220.04,8.45352631]
[1758609390697,11.315,220.17,220.05,8.45352631]
[1758609390906,11.315,220.17,220.06,8.45352631]
[1758609391106,11.315,220.17,220.07,8.45352631]
[1758609391308,7.27,220.14,220.08,8.45352631]
[1758609391509,7.27,220.15,220.09,4.35503495]
[1758609391700,7.27,220.12,220.1,4.35503495]
[1758609391901,70.8325,220.1,219.96,3.78726289]
[1758609392103,70.8383,220.08,219.97,3.78726289]
[1758609392303,7.27,220.05,219.9,11.1997]
[1758609392509,7.27,220.05,219.91,3.79112233]
[1758609392710,7.27,220.05,219.92,3.79112233]
[1758609393008,7.27,220.05,219.9,7.11]
[1758609393009,7.27,220.05,219.93,3.79112233]
[1758609393198,7.27,220.05,219.9,7.11]
[1758609393199,7.27,220.12,219.94,10.90112233]
[1758609393403,7.27,220.12,219.95,3.79112233]
[1758609393608,7.27,220.12,219.96,71.48222233]
[1758609393801,70.8328,220.1,219.97,3.79112233]
[1758609394000,70.8328,220.1,219.98,3.79112233]
[1758609394200,7.27,220.1,219.99,3.79112233]
[1758609394408,7.27,220.1,220.0,3.79047898]
[1758609394604,73.3263946,220.12,219.94,7.11]
[1758609394605,7.27,220.08,219.94,7.11]
[1758609394907,7.27,220.08,219.95,3.78973397]
[1758609395108,7.27,220.08,219.96,3.78973397]
[1758609395311,7.27,220.08,219.97,3.78973397]
[1758609395504,7.27,220.08,219.98,3.78973397]
[1758609395711,7.27,220.08,219.99,3.78973397]
[1758609395907,7.27,220.08,220.0,3.78973397]
[1758609396115,7.27,220.08,220.01,3.78973397]
[1758609396414,7.27,220.08,219.93,7.11]
[1758609396612,7.27,220.08,219.95,63.6051]
[1758609396812,7.27,220.08,219.96,10.898788]
[1758609397010,7.27,220.08,219.97,3.788788]
[1758609397216,7.27,220.04,219.98,3.788788]
[1758609397508,7.27,220.02,219.88,7.11]
[1758609397813,4.0878,220.01,219.89,3.79501964]
[1758609398014,4.0878,220.01,219.9,3.79501964]
[1758609398208,4.0878,220.01,219.91,3.79501964]
[1758609398414,4.0878,220.01,219.88,7.11]
[1758609398608,4.0878,220.01,219.89,3.79186702]
[1758609398814,4.0878,220.01,219.9,3.79186702]
[1758609399005,4.0878,220.01,219.88,7.11]
[1758609399412,4.0878,220.01,219.76,63.6597]
[1758609399413,7.27,219.91,219.72,7.11]
[1758609399617,7.27,219.91,219.73,3.79579221]
[1758609399821,4.0899,219.9,219.74,3.79579221]
[1758609400117,7.27,219.89,219.75,3.79579221]
[1758609400314,7.27,219.89,219.76,3.79579221]
[1758609400521,7.27,219.89,219.77,3.79376362]
[1758609400818,7.27,219.89,219.73,4.093]
[1758609401119,7.27,219.89,219.74,3.79383935]
[1758609401319,7.27,219.89,219.75,3.79383935]
[1758609401519,7.27,219.89,219.76,3.7924291]
[1758609401520,11.36,219.89,219.76,3.7924291]
[1758609401721,3.89471464,219.88,219.73,4.093]
[1758609401909,3.89471464,219.87,219.74,3.79264704]
[1758609402115,3.89471464,219.86,219.75,3.79264704]
[1758609402315,3.89471464,219.85,219.76,3.79264704]
[1758609402516,3.89471464,219.84,219.73,4.093]
[1758609402715,9.7689946,219.91,219.74,3.79058323]
[1758609402716,11.16303035,219.83,219.74,3.79058323]
[1758609402916,3.89303035,219.82,219.67,7.11]
[1758609403112,7.27,219.81,219.68,3.79194016]
[1758609403318,3.89303035,219.8,219.69,3.79194016]
[1758609403621,3.89303035,219.8,219.6,9.7689946]
[1758609403622,7.27,219.78,219.7,3.79194016]
[1758609403824,7.27,219.78,219.58,7.11]
[1758609403825,70.9342,219.75,219.59,3.79367594]
[1758609404018,3.89205564,219.74,219.58,7.11]
[1758609404325,7.98505564,219.74,219.58,7.11]
[1758609404525,3.89205564,219.73,219.58,7.11]
[1758609404712,3.89205564,219.72,219.58,7.11]
[1758609404916,11.16205564,219.71,219.58,7.11]
[1758609405115,11.16205564,219.71,219.51,63.7313]
[1758609405116,3.89205564,219.7,219.51,63.7313]
[1758609405321,11.16205564,219.69,219.54,7.11]
[1758609405526,3.89205564,219.68,219.54,7.11]
[1758609405725,7.27,219.69,219.54,7.11]
[1758609405925,3.77594747,219.68,219.54,7.11]
[1758609406121,7.27,219.69,219.54,7.11]
[1758609406423,3.7703724,219.68,219.54,7.11]
[1758609406630,7.27,219.69,219.57,70.8254]
[1758609407025,7.27,219.76,219.58,7.11]
[1758609407232,7.27,219.76,219.57,63.7154]
[1758609407233,3.76957608,219.75,219.63,63.6975]
[1758609407530,7.27,219.76,219.64,7.11]
[1758609407732,3.7652621,219.75,219.64,7.11]
[1758609408243,7.8578621,219.75,219.64,7.11]
[1758609408537,3.7652621,219.74,219.64,7.11]
[1758609408737,67.7569,219.75,219.64,7.11]
[1758609408940,4.093,219.73,219.58,7.11]
[1758609409142,3.76248647,219.72,219.58,7.11]
[1758609409333,11.363,219.73,219.58,7.11]
[1758609409533,3.75925911,219.72,219.58,7.11]
[1758609409729,11.363,219.73,219.58,7.11]
[1758609409937,3.7592618,219.72,219.58,7.11]
[1758609410242,11.363,219.73,219.58,7.11]
[1758609410543,3.75582047,219.72,219.58,7.11]
[1758609410739,7.27,219.73,219.58,7.11]
[1758609410935,70.9688,219.63,219.44,7.11]
[1758609411141,7.27,219.63,219.44,7.11]
[1758609411441,11.365,219.63,219.46,7.11]
[1758609411638,7.27,219.63,219.49,63.739]
[1758609411846,7.27,219.63,219.5,7.11]
[1758609413748,4.0956,219.59,219.5,7.11]
[1758609414043,63.7016,219.62,219.5,7.11]
[1758609414444,4.0956,219.6,219.5,7.11]
[1758609415045,4.0956,219.6,219.42,7.11]
[1758609415245,4.0956,219.6,219.43,7.11]
[1758609415442,11.3649,219.63,219.45,7.11]
[1758609415745,11.3649,219.63,219.46,67.8454]
[1758609415945,11.3649,219.63,219.47,7.11]
[1758609416238,7.27,219.63,219.47,7.11]
[1758609416443,7.27,219.63,219.5,7.11]
[1758609416635,7.27,219.63,219.5,70.8456]
[1758609416839,7.27,219.63,219.5,7.11]
[1758609417239,7.27,219.69,219.51,7.11]
[1758609417443,7.27,219.69,219.53,7.11]
[1758609417643,7.27,219.69,219.53,70.8373]
[1758609417840,7.27,219.69,219.54,7.11]
[1758609418041,7.27,219.69,219.55,4.0962]
[1758609419047,7.27,219.69,219.58,7.11]
[1758609419249,7.27,219.75,219.58,7.11]
[1758609419540,11.3627,219.75,219.59,4.0955]
[1758609419849,70.9336,219.75,219.59,4.0955]
[1758609420349,70.9336,219.75,219.62,7.11]
[1758609420350,7.27,219.75,219.62,7.11]
[1758609421043,7.27,219.75,219.63,4.0948]
[1758609422342,7.41,219.81,219.67,7.14]
[1758609422545,7.41,219.81,219.68,63.6828]
[1758609423046,7.41,219.81,219.67,7.14]
[1758609423250,7.41,219.81,219.67,70.8259]
[1758609423446,7.41,219.81,219.7,4.0934]
[1758609424244,4.0907,219.86,219.72,11.2331]
[1758609425747,7.41,219.83,219.64,7.14]
[1758609425944,7.41,219.81,219.64,7.14]
[1758609426847,4.0918,219.8,219.65,4.0944]
[1758609428242,3.70722715,219.79,219.65,4.0944]
[1758609428447,3.95852465,219.78,219.65,4.0944]
[1758609428748,3.95852465,219.77,219.65,4.0944]
[1758609429048,3.95852465,219.76,219.65,4.0944]
[1758609429245,3.95852465,219.75,219.64,7.14]
[1758609429449,7.41,219.73,219.58,7.14]
[1758609429638,3.95852465,219.72,219.58,7.14]
[1758609429841,3.95852465,219.71,219.58,7.14]
[1758609430036,3.95852465,219.7,219.58,7.14]
[1758609430242,3.95852465,219.69,219.59,4.0955]
[1758609430445,3.95852465,219.68,219.59,4.0955]
[1758609430646,3.95852465,219.67,219.59,4.0955]
[1758609430948,7.41,219.81,219.64,63.6953]
[1758609431149,7.41,219.81,219.63,7.14]
[1758609431150,67.48977957,219.8,219.63,7.14]
[1758609431446,3.83937957,219.79,219.63,7.14]
[1758609431647,3.83937957,219.78,219.63,7.14]
[1758609431945,3.83937957,219.77,219.63,7.14]
[1758609432143,3.83937957,219.76,219.63,7.14]
[1758609432340,3.83937957,219.75,219.65,63.6904]
[1758609432546,3.83937957,219.74,219.65,70.8304]
[1758609432745,3.83937957,219.73,219.65,7.14]
[1758609432942,3.83937957,219.72,219.65,7.14]
[1758609433136,3.83937957,219.71,219.65,7.14]
[1758609433344,3.83937957,219.7,219.6,11.2353]
[1758609433544,4.0931,219.73,219.6,11.2353]
[1758609433545,3.83937957,219.69,219.6,11.2353]
[1758609433743,4.0931,219.73,219.6,11.2353]
[1758609433744,3.85434287,219.68,219.6,11.2353]
[1758609434046,71.0718,219.76,219.6,11.2353]
[1758609434047,3.85434287,219.67,219.6,11.2353]
[1758609434248,3.85434287,219.66,219.6,11.2353]
[1758609434448,3.85434287,219.65,219.61,7.14]
[1758609434748,3.85434287,219.64,219.61,7.14]
[1758609434943,3.85434287,219.63,219.61,7.14]
[1758609435151,3.85434287,219.62,219.61,7.14]
[1758609435547,3.85434287,219.7,219.61,7.14]
[1758609435756,3.85434287,219.69,219.61,7.14]
[1758609435949,3.85434287,219.68,219.61,7.14]
[1758609436146,3.85434287,219.67,219.61,7.14]
[1758609436453,3.85434287,219.66,219.61,7.14]
[1758609436651,3.85434287,219.65,219.61,7.14]
[1758609436844,3.85434287,219.64,219.61,7.14]
[1758609437045,7.41,219.71,219.61,7.14]
[1758609437346,7.81864531,219.7,219.57,4.0959]
[1758609437545,3.72504531,219.69,219.57,4.0959]
[1758609437743,11.2747,219.64,219.53,4.0966]
[1758609437948,3.72504531,219.63,219.53,4.0966]
[1758609438150,3.72504531,219.62,219.5,7.47]
[1758609438351,3.72504531,219.61,219.5,11.5672]
[1758609438554,3.72504531,219.6,219.5,11.5672]
[1758609438751,3.72504531,219.59,219.5,11.5672]
[1758609438947,3.72504531,219.58,219.5,11.5672]
[1758609439149,3.72504531,219.57,219.52,4.0968]
[1758609439453,3.72504531,219.56,219.52,4.0968]
[1758609439647,3.72504531,219.55,219.52,4.0968]
[1758609439846,7.18,219.64,219.52,4.0968]
[1758609440046,3.73232912,219.63,219.52,4.0968]
[1758609440247,3.73232912,219.62,219.52,4.0968]
[1758609440450,3.73232912,219.61,219.54,4.0965]
[1758609440748,3.73232912,219.6,219.5,7.47]
[1758609440950,7.18,219.58,219.46,4.0979]
[1758609441254,3.73232912,219.57,219.46,4.0979]
[1758609441549,3.73232912,219.56,219.48,7.47]
[1758609441744,3.73232912,219.55,219.48,7.47]
[1758609441947,3.73232912,219.54,219.48,7.47]
[1758609442146,3.73232912,219.53,219.48,7.47]
[1758609442348,3.73232912,219.52,219.47,4.0978]
[1758609442542,3.73232912,219.51,219.48,7.47]
[1758609442742,3.73232912,219.5,219.47,4.0978]
[1758609442947,3.73232912,219.49,219.43,63.7568]
[1758609443152,3.73232912,219.48,219.44,63.7537]
[1758609443352,3.73232912,219.47,219.43,63.7568]
[1758609443553,3.73232912,219.46,219.45,11.5683]
[1758609443753,7.18,219.57,219.46,63.7481]
[1758609444551,7.18,219.57,219.45,7.47]
[1758609445458,7.18,219.57,219.48,4.0976]
[1758609446350,7.18,219.57,219.45,11.5681]
[1758609446956,7.18,219.57,219.47,4.0978]
[1758609448258,7.18,219.57,219.39,66.84294932]
[1758609448259,63.7576,219.43,219.36,4.932e-05]
[1758609448460,11.2796,219.39,219.23,7.47]
[1758609448651,7.18,219.39,219.23,7.47]
[1758609448857,7.18,219.39,219.26,3.72881404]
[1758609449058,3.30174816,219.38,219.27,7.47]
[1758609449257,3.30174816,219.37,219.27,7.47]
[1758609449563,3.30174816,219.36,219.27,7.47]
[1758609449763,3.30174816,219.35,219.27,7.47]
[1758609449962,3.30174816,219.34,219.27,7.47]
[1758609450163,7.18,219.39,219.27,7.47]
[1758609450365,3.29307723,219.38,219.27,7.47]
[1758609450663,7.18,219.39,219.22,7.02]
[1758609450664,3.29307723,219.37,219.22,7.02]
[1758609450863,3.29307723,219.36,219.22,7.02]
[1758609451163,3.29307723,219.35,219.22,7.02]
[1758609451366,3.29307723,219.34,219.22,7.02]
[1758609451558,3.29307723,219.33,219.22,7.02]
[1758609451766,3.29307723,219.32,219.22,7.02]
[1758609452060,3.29307723,219.31,219.22,7.02]
[1758609452359,3.29307723,219.3,219.23,4.1023]
[1758609452556,6.13,219.35,219.23,4.1023]
[1758609452862,3.33404418,219.34,219.23,4.1023]
[1758609453063,19.66838576,219.4,219.26,70.8268]
[1758609453260,3.33347438,219.39,219.26,70.8268]
[1758609453561,3.33347438,219.38,219.27,67.905]
[1758609453760,3.33347438,219.37,219.27,67.905]
[1758609453961,6.13,219.4,219.27,67.905]
[1758609454259,3.33100461,219.39,219.29,63.7975]
[1758609454463,6.13,219.45,219.3,7.02]
[1758609454662,3.32801812,219.44,219.3,7.02]
[1758609454857,7.42671812,219.43,219.3,7.02]
[1758609455059,69.8937,219.41,219.24,7.02]
[1758609455262,3.32852237,219.4,219.24,7.02]
[1758609455459,7.42802237,219.39,219.25,4.102]
[1758609455660,3.32852237,219.38,219.25,4.102]
[1758609455866,6.13,219.37,219.24,7.02]
[1758609456065,3.32852237,219.36,219.24,11.1221]
[1758609456265,6.13,219.37,219.24,11.1221]
[1758609456570,10.2289,219.42,219.25,7.02]
[1758609456867,7.04772219,219.41,219.25,7.02]
[1758609457058,3.36639337,219.4,219.25,7.02]
[1758609457263,3.36639337,219.39,219.29,7.02]
[1758609457470,6.13,219.42,219.29,7.02]
[1758609457769,3.36389863,219.41,219.29,7.02]
[1758609457969,6.13,219.42,219.29,7.02]
[1758609458168,6.13,219.42,219.3,4.1009]
[1758609458169,3.36383289,219.41,219.3,4.1009]
[1758609458366,6.13,219.42,219.3,4.1009]
[1758609458568,3.36244741,219.41,219.3,4.1009]
[1758609458767,6.13,219.42,219.3,4.1009]
[1758609458969,3.36251135,219.41,219.3,4.1009]
[1758609459172,6.13,219.42,219.3,4.1009]
[1758609459469,6.13,219.42,219.32,4.1006]
[1758609460273,6.13,219.42,219.29,11.1212]
[1758609460473,6.13,219.42,219.29,7.02]
[1758609460662,3.36035641,219.41,219.29,7.02]
[1758609460868,6.13,219.42,219.29,7.02]
[1758609461069,6.13,219.39,219.29,7.02]
[1758609461267,27.15188564,219.44,219.29,7.02]
[1758609461568,3.35893751,219.43,219.3,4.1011]
[1758609461773,19.84685803,219.44,219.3,4.1011]
[1758609461973,3.35845411,219.43,219.3,63.7951]
[1758609462174,19.84685803,219.44,219.32,4.1006]
[1758609462574,6.13,219.44,219.33,63.7864]
[1758609462872,6.13,219.44,219.32,7.02]
[1758609463566,6.13,219.44,219.32,11.1206]
[1758609464275,13.42951024,219.46,219.35,7.02]
[1758609464475,41.76556859,219.49,219.35,7.02]
[1758609464668,3.35603834,219.48,219.35,7.02]
[1758609464869,3.35603834,219.47,219.35,7.02]
[1758609465171,3.35603834,219.46,219.35,7.02]
[1758609465370,6.13,219.49,219.35,7.02]
[1758609465571,6.13,219.47,219.35,7.02]
[1758609465880,6.13,219.45,219.29,7.02]
[1758609466074,3.35609886,219.44,219.3,4.101]
[1758609466780,3.35609886,219.44,219.29,7.02]
[1758609466781,6.13,219.43,219.32,4.1005]
[1758609467079,3.35609886,219.42,219.32,4.1005]
[1758609467474,3.35609886,219.42,219.34,4.1003]
[1758609467973,6.13,219.43,219.34,4.1003]
[1758609468381,3.35755175,219.42,219.34,4.1003]
[1758609468582,6.13,219.43,219.34,4.1003]
[1758609468876,7.30502761,219.47,219.36,4.0999]
[1758609469078,3.3572628,219.46,219.36,4.0999]
[1758609469284,3.3572628,219.45,219.36,4.0999]
[1758609469479,7.30502761,219.47,219.21,7.02]
[1758609469480,6.13,219.43,219.21,7.02]
[1758609469676,7.58,219.3,219.1,63.8529]
[1758609469981,7.58,219.3,219.14,63.842]
[1758609469982,3.36200796,219.29,219.14,63.842]
[1758609470182,3.36200796,219.28,219.11,63.8506]
[1758609470484,3.36200796,219.27,219.12,63.8478]
[1758609470685,3.36200796,219.26,219.15,4.1038]
[1758609470886,7.58,219.3,219.15,4.1038]
[1758609471083,3.36247794,219.29,219.15,4.1038]
[1758609471284,3.36247794,219.28,219.15,4.1038]
[1758609471479,3.36247794,219.27,219.15,4.1038]
[1758609471688,3.36247794,219.26,219.16,7.02]
[1758609471882,7.58,219.3,219.17,4.1035]
[1758609472181,3.3619683,219.29,219.17,4.1035]
[1758609472383,3.3619683,219.28,219.17,4.1035]
[1758609472584,3.3619683,219.27,219.17,4.1035]
[1758609472785,3.3619683,219.26,219.17,4.1035]
[1758609472987,7.58,219.3,219.17,4.1035]
[1758609473187,3.36186736,219.29,219.19,4.1031]
[1758609473388,3.36186736,219.28,219.2,7.02]
[1758609473586,3.36186736,219.27,219.2,7.02]
[1758609473782,7.30502761,219.32,219.2,7.02]
[1758609473982,3.36206583,219.31,219.2,7.02]
[1758609474277,3.36206583,219.3,219.2,7.02]
[1758609474483,3.36206583,219.29,219.2,7.02]
[1758609474679,3.36206583,219.28,219.2,7.02]
[1758609474891,3.36206583,219.27,219.21,4.1028]
[1758609475183,7.58,219.35,219.21,4.1028]
[1758609475388,7.58,219.35,219.22,63.8183]
[1758609475389,3.36343073,219.34,219.22,63.8183]
[1758609475589,3.36343073,219.33,219.23,4.1022]
[1758609475788,3.36343073,219.32,219.23,4.1022]
[1758609476089,3.36343073,219.31,219.24,7.02]
[1758609476286,3.36343073,219.3,219.24,7.02]
[1758609476486,3.36343073,219.29,219.23,7.02]
[1758609476787,7.58,219.35,219.25,4.1019]
[1758609476987,3.36481618,219.34,219.25,4.1019]
[1758609477189,3.36481618,219.33,219.25,4.1019]
[1758609477387,3.36481618,219.32,219.28,7.02]
[1758609477591,3.36481618,219.31,219.27,63.8038]
[1758609477784,8.24215403,219.4,219.28,7.02]
[1758609477984,6.9435198,219.39,219.28,7.02]
[1758609478290,3.36621756,219.38,219.28,7.02]
[1758609478490,3.36621756,219.37,219.28,7.02]
[1758609478685,3.36621756,219.36,219.28,7.02]
[1758609478886,3.36621756,219.35,219.29,4.1012]
[1758609479089,3.36621756,219.34,219.29,11.1212]
[1758609479395,3.36621756,219.33,219.29,11.1212]
[1758609479690,3.36621756,219.32,219.29,4.1012]
[1758609479899,3.36621756,219.31,219.29,11.1212]
[1758609480082,5.02454813,219.39,219.29,11.1212]
[1758609480280,11.98074905,219.38,219.29,11.1212]
[1758609480486,6.95620092,219.37,219.29,7.02]
[1758609480689,3.37367274,219.36,219.29,7.02]
[1758609480889,3.37367274,219.35,219.29,7.02]
[1758609481089,3.37367274,219.34,219.3,4.101]
[1758609481288,3.37367274,219.33,219.31,7.02]
[1758609481489,3.37367274,219.32,219.31,7.02]
[1758609482191,3.37367274,219.37,219.31,7.02]
[1758609482391,3.37367274,219.36,219.31,7.02]
[1758609482594,3.37367274,219.35,219.31,7.02]
[1758609482786,3.37367274,219.34,219.31,7.02]
[1758609482986,3.37367274,219.33,219.31,7.02]
[1758609483186,3.37367274,219.32,219.31,7.02]
[1758609483593,3.37367274,219.32,219.27,4.1016]
[1758609483792,3.37367274,219.31,219.28,7.02]
[1758609483992,3.37367274,219.3,219.28,7.02]
[1758609484192,3.37367274,219.29,219.28,7.02]
[1758609484393,5.02454813,219.37,219.3,4.101]
[1758609484592,3.59722788,219.36,219.3,4.101]
[1758609484897,3.59722788,219.35,219.3,11.121]
[1758609485195,5.02454813,219.37,219.3,11.121]
[1758609485392,3.59942289,219.36,219.26,4.1017]
[1758609485592,3.59942289,219.35,219.25,7.02]
[1758609485988,12.06454813,219.33,219.23,4.1023]
[1758609486192,8.62397102,219.32,219.23,4.1023]
[1758609486394,3.59942289,219.31,219.22,63.8175]
[1758609486587,3.59942289,219.31,219.25,4.1019]
[1758609486899,12.06454813,219.33,219.25,4.1019]
[1758609487101,3.60187179,219.32,219.24,7.02]
[1758609487291,3.60187179,219.31,219.24,7.02]
[1758609487793,12.06454813,219.33,219.24,7.02]
[1758609487794,5.02454813,219.33,219.24,7.02]
[1758609487988,5.02454813,219.35,219.27,7.02]
[1758609488191,3.60337534,219.34,219.27,7.02]
[1758609488497,3.60337534,219.33,219.27,7.02]
[1758609488686,3.60337534,219.32,219.27,7.02]
[1758609488890,3.64320186,219.31,219.23,4.1023]
[1758609489087,5.02454813,219.34,219.24,7.02]
[1758609489296,3.6434449,219.33,219.25,63.8096]
[1758609489488,3.6434449,219.32,219.29,11.1212]
[1758609489691,12.06454813,219.36,219.29,7.02]
[1758609489892,3.64566343,219.35,219.24,63.8117]
[1758609490099,12.77061156,219.34,219.2,63.8242]
[1758609490298,5.02454813,219.32,219.19,70.8469]
[1758609490492,3.64566343,219.31,219.24,11.1221]
[1758609490698,3.64566343,219.31,219.24,7.02]
[1758609490993,11.40482761,219.37,219.24,7.02]
[1758609490994,5.02454813,219.34,219.24,7.02]
[1758609491197,5.02454813,219.34,219.19,63.8269]
[1758609491198,15.71267738,219.33,219.19,70.8469]
[1758609491393,3.64812925,219.32,219.19,70.8469]
[1758609491599,5.02454813,219.31,219.2,63.8236]
[1758609491896,3.64812925,219.3,219.2,63.8236]
[1758609492294,3.64812925,219.3,219.23,4.1023]
[1758609492697,3.64812925,219.3,219.21,63.8198]
[1758609492898,3.64812925,219.3,219.23,7.02]
[1758609493094,3.64812925,219.29,219.23,7.02]
[1758609493395,3.64812925,219.28,219.23,7.02]
[1758609493597,5.02454813,219.32,219.23,7.02]
[1758609493800,3.6572716,219.31,219.25,4.102]
[1758609494001,3.6572716,219.3,219.25,11.122]
[1758609494300,7.04,219.33,219.25,11.122]
[1758609494301,3.6572716,219.29,219.25,11.122]
[1758609494503,12.06454813,219.33,219.25,11.122]
[1758609494697,3.65714859,219.32,219.27,4.1016]
[1758609494909,7.30502761,219.39,219.27,4.1016]
[1758609494910,12.06454813,219.38,219.28,7.02]
[1758609495104,127.6052,219.28,219.08,70.8793]
[1758609495301,5.02454813,219.24,219.13,4.1042]
[1758609495501,3.65577595,219.23,219.13,4.1042]
[1758609495700,3.65577595,219.23,219.1,70.8733]
[1758609495701,3.65577595,219.23,219.1,7.02]
[1758609496098,8.68032408,219.23,219.1,7.02]
[1758609496304,4.1028,219.21,219.12,4.1044]
[1758609496504,3.35750446,219.2,219.12,4.1044]
[1758609496808,3.35750446,219.19,219.12,4.1044]
[1758609497098,3.35750446,219.18,219.12,4.1044]
[1758609497303,4.1028,219.21,219.12,4.1044]
[1758609497497,3.30678096,219.2,219.12,4.1044]
[1758609497697,3.30678096,219.19,219.12,4.1044]
[1758609498006,3.30678096,219.18,219.12,4.1044]
[1758609498205,6.98,219.19,219.1,7.02]
[1758609498506,3.30551242,219.18,219.05,7.27]
[1758609498802,3.30551242,219.17,219.05,7.27]
[1758609499004,3.30551242,219.16,219.05,7.27]
[1758609499204,6.98,219.19,219.05,7.27]
[1758609499508,3.3040396,219.18,219.05,7.27]
[1758609499707,3.3040396,219.17,219.05,7.27]
[1758609500008,3.3040396,219.16,219.06,4.1055]
[1758609500311,4.1034,219.18,219.06,4.1055]
[1758609500511,3.3023794,219.17,219.06,4.1055]
[1758609500715,3.3023794,219.16,219.06,4.1055]
[1758609501008,4.1034,219.18,219.06,4.1055]
[1758609501198,3.3023794,219.17,219.06,4.1055]
[1758609501400,4.1034,219.18,219.06,4.1055]
[1758609501600,3.30085804,219.17,219.06,4.1055]
[1758609501801,6.98,219.19,219.08,7.27]
[1758609502007,3.30082603,219.18,219.08,7.27]
[1758609502209,6.98,219.19,219.09,63.8564]
[1758609502405,6.98,219.19,219.12,4.1044]
[1758609503206,6.98,219.19,219.08,11.3751]
[1758609503400,3.29920328,219.18,219.08,11.3751]
[1758609503603,6.98,219.19,219.08,11.3751]
[1758609503805,3.29920465,219.18,219.08,11.3751]
[1758609504014,6.98,219.19,219.08,11.3751]
[1758609504202,3.29920603,219.18,219.08,11.3751]
[1758609504404,11.0833,219.19,219.04,4.1059]
[1758609504604,6.98,219.17,219.04,4.1059]
[1758609504804,6.98,219.17,219.03,7.27]
[1758609505209,6.98,219.17,219.05,63.8682]
[1758609505508,6.98,219.17,219.06,7.27]
[1758609506908,6.98,219.17,219.08,4.1052]